{"text_format":"3","workbook":"xlsx","n_sheets":2,"sheets":["Resumen del presupuesto","Detalles del presupuesto"],"not_rendered":{"images":1,"defined_names":1},"read":"whole","date_system":"1900"}

{"sheet":"Resumen del presupuesto","index":0,"n_rows":28,"n_cols":7,"rows_kept":28}
[{"$nulls":6}," "]
[]
[null,"PRESUPUESTO TOTAL DE LA BODA",{"v":20000,"d":"$20,000"}]
[]
[null,"GASTOS","Asignación \nPorcentaje","Presupuesto asignado","Estimado \nCostos","Real \nCostos"]
[null,"Banquete",{"v":0.5,"d":"50%"},{"$f":"Presupuesto_Total_Boda*'Resumen del presupuesto'!$C6","v":{"v":10000,"d":"$10,000"}},{"$f":"Tabla_Recepción[[#Totals],[Costos estimados]]","v":{"v":0,"d":"$0"}},{"$f":"Tabla_Recepción[[#Totals],[Costos reales]]","v":{"v":0,"d":"$0"}}]
[null,"Atuendo",{"v":0.1,"d":"10%"},{"$f":"Presupuesto_Total_Boda*'Resumen del presupuesto'!$C7","v":{"v":2000,"d":"$2,000"}},{"$f":"Tabla_Vestimenta[[#Totals],[Costos estimados]]","v":{"v":0,"d":"$0"}},{"$f":"Tabla_Vestimenta[[#Totals],[Costos reales]]","v":{"v":0,"d":"$0"}}]
[null,"Flores y decoraciones",{"v":0.1,"d":"10%"},{"$f":"Presupuesto_Total_Boda*'Resumen del presupuesto'!$C8","v":{"v":2000,"d":"$2,000"}},{"$f":"Tabla_FloresYDecoraciones[[#Totals],[Costos estimados]]","v":{"v":0,"d":"$0"}},{"$f":"Tabla_FloresYDecoraciones[[#Totals],[Costos reales]]","v":{"v":0,"d":"$0"}}]
[null,"Música",{"v":0.1,"d":"10%"},{"$f":"Presupuesto_Total_Boda*'Resumen del presupuesto'!$C9","v":{"v":2000,"d":"$2,000"}},{"$f":"Tabla_Música[[#Totals],[Costos estimados]]","v":{"v":0,"d":"$0"}},{"$f":"Tabla_Música[[#Totals],[Costos reales]]","v":{"v":0,"d":"$0"}}]
[null,"Fotografías y video",{"v":0.1,"d":"10%"},{"$f":"Presupuesto_Total_Boda*'Resumen del presupuesto'!$C10","v":{"v":2000,"d":"$2,000"}},{"$f":"Tabla_FotografíaYVideo[[#Totals],[Costos estimados]]","v":{"v":0,"d":"$0"}},{"$f":"Tabla_FotografíaYVideo[[#Totals],[Costos reales]]","v":{"v":0,"d":"$0"}}]
[null,"Favores y regalos",{"v":0.03,"d":"3%"},{"$f":"Presupuesto_Total_Boda*'Resumen del presupuesto'!$C11","v":{"v":600,"d":"$600"}},{"$f":"Tabla_FavoresYRegalos[[#Totals],[Costos estimados]]","v":{"v":0,"d":"$0"}},{"$f":"Tabla_FavoresYRegalos[[#Totals],[Costos reales]]","v":{"v":0,"d":"$0"}}]
[null,"Ceremonia",{"v":0.02,"d":"2%"},{"$f":"Presupuesto_Total_Boda*'Resumen del presupuesto'!$C12","v":{"v":400,"d":"$400"}},{"$f":"Tabla_Ceremonia[[#Totals],[Costos estimados]]","v":{"v":0,"d":"$0"}},{"$f":"Tabla_Ceremonia[[#Totals],[Costos reales]]","v":{"v":0,"d":"$0"}}]
[null,"Papelería",{"v":0.02,"d":"2%"},{"$f":"Presupuesto_Total_Boda*'Resumen del presupuesto'!$C13","v":{"v":400,"d":"$400"}},{"$f":"Tabla_Papelería[[#Totals],[Costos estimados]]","v":{"v":0,"d":"$0"}},{"$f":"Tabla_Papelería[[#Totals],[Costos reales]]","v":{"v":0,"d":"$0"}}]
[null,"Alianzas",{"v":0.02,"d":"2%"},{"$f":"Presupuesto_Total_Boda*'Resumen del presupuesto'!$C14","v":{"v":400,"d":"$400"}},{"$f":"Tabla_Alianzas[[#Totals],[Costos estimados]]","v":{"v":0,"d":"$0"}},{"$f":"Tabla_Alianzas[[#Totals],[Costos reales]]","v":{"v":0,"d":"$0"}}]
[null,"Transporte",{"v":0.01,"d":"1%"},{"$f":"Presupuesto_Total_Boda*'Resumen del presupuesto'!$C15","v":{"v":200,"d":"$200"}},{"$f":"Tabla_Transporte[[#Totals],[Costos estimados]]","v":{"v":0,"d":"$0"}},{"$f":"Tabla_Transporte[[#Totals],[Costos reales]]","v":{"v":0,"d":"$0"}}]
[null,"Total",{"$f":"SUM(C6:C15)","v":{"v":1,"d":"100%"}},{"$f":"SUM(D6:D15)","v":{"v":20000,"d":"$20,000"}},{"v":0,"d":"$0"},{"v":0,"d":"$0"}]
[]
[null,"CONTRIBUCIONES"]
[null,"Fuente de financiamiento","Contribución"]
[null,"Ahorros",{"v":10000,"d":"$10,000"}]
[null,"Mamá y papá del socio 1",{"v":4000,"d":"$4,000"}]
[null,"Abuelos del socio 1",{"v":2000,"d":"$2,000"}]
[null,"Mamá y papá del socio 2",{"v":4000,"d":"$4,000"}]
[null,"Abuelos del socio 2",{"v":4000,"d":"$4,000"}]
[null,"Otras contribuciones",{"v":2000,"d":"$2,000"}]
[null,"Total",{"$f":"SUBTOTAL(109,Tabla_Contribuciones[Contribución])","v":{"v":26000,"d":"$26,000"}}]
[]
[null,{"$f":"IF(Tabla_Contribuciones[[#Totals],[Contribución]]<Presupuesto_Total_Boda,\"Diferencias para crear\",\"Fondos adicionales disponibles\")","v":"Fondos adicionales disponibles"},{"$f":"IF(Tabla_Contribuciones[[#Totals],[Contribución]]<Presupuesto_Total_Boda,Presupuesto_Total_Boda-Tabla_Contribuciones[[#Totals],[Contribución]],Tabla_Contribuciones[[#Totals],[Contribución]]-Presupuesto_Total_Boda)","v":{"v":6000,"d":"$6,000"}}]

{"sheet":"Detalles del presupuesto","index":1,"n_rows":80,"n_cols":4,"rows_kept":80}
[]
[null,"RECEPCIÓN","Costos estimados","Costos reales"]
[null,"Recinto y alquiler"]
[null,"Comida y servicio"]
[null,"Bebidas"]
[null,"Pastel"]
[null,"Gastos varios"]
[null,"Total",{"$f":"SUBTOTAL(109,Tabla_Recepción[Costos estimados])","v":{"v":0,"d":"$0.00"}},{"$f":"SUBTOTAL(109,Tabla_Recepción[Costos reales])","v":{"v":0,"d":"$0.00"}}]
[]
[null,"VESTIMENTA","Costos estimados","Costos reales"]
[null,"Esmoquin, traje o vestidos"]
[null,"Modificaciones"]
[null,"Tocado y velo"]
[null,"Accesorios"]
[null,"Cabello y maquillaje"]
[null,"Gastos varios"]
[null,"Total",{"$f":"SUBTOTAL(109,Tabla_Vestimenta[Costos estimados])","v":{"v":0,"d":"$0.00"}},{"$f":"SUBTOTAL(109,Tabla_Vestimenta[Costos reales])","v":{"v":0,"d":"$0.00"}}]
[]
[null,"FLORES Y DECORACIONES","Costos estimados","Costos reales"]
[null,"Arreglos florales para la ceremonia"]
[null,"Botones y canastilla para la niña de las flores"]
[null,"Cojín para las alianzas"]
[null,"Ramos"]
[null,"Botones florales"]
[null,"Ramilletes"]
[null,"Decoración de la recepción"]
[null,"Iluminación"]
[null,"Gastos varios"]
[null,"Total",{"$f":"SUBTOTAL(109,Tabla_FloresYDecoraciones[Costos estimados])","v":{"v":0,"d":"$0.00"}},{"$f":"SUBTOTAL(109,Tabla_FloresYDecoraciones[Costos reales])","v":{"v":0,"d":"$0.00"}}]
[]
[null,"MÚSICA","Costos estimados","Costos reales"]
[null,"Músicos para la ceremonia"]
[null,"Músicos para la hora del coctel"]
[null,"Grupo para la recepción, DJ o entretenimiento"]
[null,"Sistema de sonido o renta de pista de baile"]
[null,"Gastos varios"]
[null,"Total",{"$f":"SUBTOTAL(109,Tabla_Música[Costos estimados])","v":{"v":0,"d":"$0.00"}},{"$f":"SUBTOTAL(109,Tabla_Música[Costos reales])","v":{"v":0,"d":"$0.00"}}]
[]
[null,"FOTOGRAFÍAS Y VIDEO","Costos estimados","Costos reales"]
[null,"Fotografía"]
[null,"Grabación"]
[null,"Impresiones y álbumes adicionales"]
[null,"Gastos varios"]
[null,"Total",{"$f":"SUBTOTAL(109,Tabla_FotografíaYVideo[Costos estimados])","v":{"v":0,"d":"$0.00"}},{"$f":"SUBTOTAL(109,Tabla_FotografíaYVideo[Costos reales])","v":{"v":0,"d":"$0.00"}}]
[]
[null,"FAVORES Y REGALOS","Costos estimados","Costos reales"]
[null,"Regalos de bienvenida"]
[null,"Regalos para la fiesta"]
[null,"Gastos varios"]
[null,"Total",{"$f":"SUBTOTAL(109,Tabla_FavoresYRegalos[Costos estimados])","v":{"v":0,"d":"$0.00"}},{"$f":"SUBTOTAL(109,Tabla_FavoresYRegalos[Costos reales])","v":{"v":0,"d":"$0.00"}}]
[]
[null,"CEREMONIA","Costos estimados","Costos reales"]
[null,"Cuota del sitio"]
[null,"Honorarios del oficiante o donación para la iglesia"]
[null,"Gastos varios"]
[null,"Total",{"$f":"SUBTOTAL(109,Tabla_Ceremonia[Costos estimados])","v":{"v":0,"d":"$0.00"}},{"$f":"SUBTOTAL(109,Tabla_Ceremonia[Costos reales])","v":{"v":0,"d":"$0.00"}}]
[]
[null,"PAPELERÍA","Costos estimados","Costos reales"]
[null,"Tarjetas para apartar la fecha"]
[null,"Invitaciones y RSVP"]
[null,"Programas"]
[null,"Tarjetas de asignación de lugar y mesa"]
[null,"Tarjetas de menú"]
[null,"Notas de agradecimiento"]
[null,"Gastos de envío"]
[null,"Gastos varios"]
[null,"Total",{"$f":"SUBTOTAL(109,Tabla_Papelería[Costos estimados])","v":{"v":0,"d":"$0.00"}},{"$f":"SUBTOTAL(109,Tabla_Papelería[Costos reales])","v":{"v":0,"d":"$0.00"}}]
[]
[null,"ALIANZAS","Costos estimados","Costos reales"]
[null,"Alianzas"]
[null,"Accesorios de las alianzas"]
[null,"Total",{"$f":"SUBTOTAL(109,Tabla_Alianzas[Costos estimados])","v":{"v":0,"d":"$0.00"}},{"$f":"SUBTOTAL(109,Tabla_Alianzas[Costos reales])","v":{"v":0,"d":"$0.00"}}]
[]
[null,"TRANSPORTE","Costos estimados","Costos reales"]
[null,"Renta de auto principal"]
[null,"Renta de auto para invitados"]
[null,"Transporte para invitados de fuera de la ciudad"]
[null,"Valet parking"]
[null,"Gastos varios"]
[null,"Total",{"$f":"SUBTOTAL(109,Tabla_Transporte[Costos estimados])","v":{"v":0,"d":"$0.00"}},{"$f":"SUBTOTAL(109,Tabla_Transporte[Costos reales])","v":{"v":0,"d":"$0.00"}}]